[Event "*** Titled Tuesday Blitz"]
[Site "Chess.com"]
[Date "2019.02.05"]
[Round "5"]
[White "volcanoexplorer"]
[Black "RaphaeI"]
[Result "1/2-1/2"]
[WhiteElo "2366"]
[BlackElo "2572"]
[TimeControl "180+2"]
[EndTime "14:08:58 PST"]
[Termination "Game drawn by repetition"]

1. e4 {[%clk 0:03:01.9]} 1... c5 {[%clk 0:03:00.5]} 2. Nf3 {[%clk 0:03:03]} 2...
Nc6 {[%clk 0:03:01.7]} 3. d4 {[%clk 0:03:04.2]} 3... cxd4 {[%clk 0:03:03.1]} 4.
Nxd4 {[%clk 0:03:05.9]} 4... Nf6 {[%clk 0:03:04.7]} 5. Nc3 {[%clk 0:03:07]} 5...
e5 {[%clk 0:03:06.4]} 6. Ndb5 {[%clk 0:03:07.6]} 6... d6 {[%clk 0:03:07.9]} 7.
Bg5 {[%clk 0:03:08.9]} 7... a6 {[%clk 0:03:08.7]} 8. Na3 {[%clk 0:03:10]} 8...
b5 {[%clk 0:03:10.5]} 9. Nd5 {[%clk 0:03:11.2]} 9... Be7 {[%clk 0:03:12]} 10.
Bxf6 {[%clk 0:03:12.5]} 10... Bxf6 {[%clk 0:03:13.9]} 11. c3 {[%clk 0:03:13.9]}
11... Bg5 {[%clk 0:03:14.4]} 12. Nc2 {[%clk 0:03:12.1]} 12... Rb8 {[%clk
0:03:15.9]} 13. Bd3 {[%clk 0:03:05.3]} 13... O-O {[%clk 0:03:16]} 14. h4 {[%clk
0:03:01.6]} 14... Bh6 {[%clk 0:03:16.5]} 15. g3 {[%clk 0:03:00.8]} 15... a5
{[%clk 0:03:13.5]} 16. a3 {[%clk 0:02:53.5]} 16... Be6 {[%clk 0:03:14.1]} 17.
Nce3 {[%clk 0:02:50]} 17... Bxe3 {[%clk 0:02:54.2]} 18. Nxe3 {[%clk 0:02:48.9]}
18... b4 {[%clk 0:02:55.8]} 19. axb4 {[%clk 0:02:31]} 19... axb4 {[%clk
0:02:57.7]} 20. Ra6 {[%clk 0:02:17.2]} 20... Rb6 {[%clk 0:02:46.3]} 21. O-O
{[%clk 0:02:04.9]} 21... bxc3 {[%clk 0:02:38.4]} 22. bxc3 {[%clk 0:02:04.8]}
22... Rxa6 {[%clk 0:02:39.4]} 23. Bxa6 {[%clk 0:02:05.5]} 23... Qb6 {[%clk
0:02:41.3]} 24. Bc4 {[%clk 0:02:00.6]} 24... Rd8 {[%clk 0:01:16.8]} 25. Qd3
{[%clk 0:02:00.5]} 25... Qc5 {[%clk 0:01:17.5]} 26. Bd5 {[%clk 0:01:56.9]} 26...
Ne7 {[%clk 0:01:15.1]} 27. c4 {[%clk 0:01:29.9]} 27... Nc6 {[%clk 0:01:12.5]}
28. Rb1 {[%clk 0:01:25.8]} 28... Qd4 {[%clk 0:00:26.7]} 29. Qc2 {[%clk
0:00:47.9]} 29... Ne7 {[%clk 0:00:24.7]} 30. Rd1 {[%clk 0:00:45.3]} 30... Qc5
{[%clk 0:00:25.1]} 31. Qa4 {[%clk 0:00:42.7]} 31... Bxd5 {[%clk 0:00:16.8]} 32.
cxd5 {[%clk 0:00:41.8]} 32... Rc8 {[%clk 0:00:18.1]} 33. Rb1 {[%clk 0:00:39.8]}
33... Qc7 {[%clk 0:00:17.4]} 34. Qa6 {[%clk 0:00:39]} 34... Rb8 {[%clk
0:00:17.2]} 35. Ra1 {[%clk 0:00:36.8]} 35... g6 {[%clk 0:00:16.5]} 36. Nc4
{[%clk 0:00:35]} 36... Nc8 {[%clk 0:00:17.6]} 37. Kg2 {[%clk 0:00:24.8]} 37...
Rb4 {[%clk 0:00:17.5]} 38. Nd2 {[%clk 0:00:15.7]} 38... Rb2 {[%clk 0:00:18.4]}
39. Qd3 {[%clk 0:00:16.3]} 39... Qc5 {[%clk 0:00:15]} 40. Ra3 {[%clk 0:00:15.7]}
40... Nb6 {[%clk 0:00:13.5]} 41. Rc3 {[%clk 0:00:16.6]} 41... Qd4 {[%clk
0:00:14.8]} 42. Qxd4 {[%clk 0:00:16.7]} 42... exd4 {[%clk 0:00:16.7]} 43. Rd3
{[%clk 0:00:18.4]} 43... Rb4 {[%clk 0:00:11.7]} 44. Nf3 {[%clk 0:00:19.7]} 44...
Na4 {[%clk 0:00:13]} 45. Rxd4 {[%clk 0:00:16.6]} 45... Rxd4 {[%clk 0:00:13.2]}
46. Nxd4 {[%clk 0:00:18.5]} 46... Nc3 {[%clk 0:00:14.8]} 47. Kf3 {[%clk
0:00:19.6]} 47... Kg7 {[%clk 0:00:16.7]} 48. Nc2 {[%clk 0:00:17.7]} 48... Kf6
{[%clk 0:00:17.1]} 49. Ne3 {[%clk 0:00:18.8]} 49... Ke7 {[%clk 0:00:16.4]} 50.
Nc4 {[%clk 0:00:20.1]} 50... f5 {[%clk 0:00:16]} 51. exf5 {[%clk 0:00:18.7]}
51... gxf5 {[%clk 0:00:17.5]} 52. Kf4 {[%clk 0:00:20.2]} 52... Kf6 {[%clk
0:00:16.8]} 53. Nxd6 {[%clk 0:00:20.4]} 53... Nxd5+ {[%clk 0:00:17.9]} 54. Kf3
{[%clk 0:00:21.8]} 54... h5 {[%clk 0:00:17]} 55. Nc4 {[%clk 0:00:22.2]} 55...
Nc3 {[%clk 0:00:17.1]} 56. Ne3 {[%clk 0:00:21.5]} 56... Ne4 {[%clk 0:00:18]} 57.
Nd5+ {[%clk 0:00:20.9]} 57... Kg6 {[%clk 0:00:17.1]} 58. Nf4+ {[%clk 0:00:15.9]}
58... Kh6 {[%clk 0:00:18.1]} 59. Nh3 {[%clk 0:00:17.3]} 59... Kg6 {[%clk
0:00:18.2]} 60. Nf4+ {[%clk 0:00:18.2]} 60... Kh6 {[%clk 0:00:19.1]} 61. Nd3
{[%clk 0:00:19.8]} 61... Kg6 {[%clk 0:00:20]} 62. Kf4 {[%clk 0:00:21.2]} 62...
Kf6 {[%clk 0:00:19.2]} 63. f3 {[%clk 0:00:19.1]} 63... Nc3 {[%clk 0:00:18.9]}
64. Nb4 {[%clk 0:00:15]} 64... Ne2+ {[%clk 0:00:18.9]} 65. Ke3 {[%clk
0:00:16.3]} 65... Nxg3 {[%clk 0:00:20.7]} 66. Nd5+ {[%clk 0:00:16.6]} 66... Ke5
{[%clk 0:00:22.1]} 67. Ne7 {[%clk 0:00:12.8]} 67... f4+ {[%clk 0:00:22.6]} 68.
Kf2 {[%clk 0:00:13.3]} 68... Nf5 {[%clk 0:00:16.7]} 69. Nxf5 {[%clk 0:00:06.6]}
69... Kxf5 {[%clk 0:00:18.6]} 70. Ke2 {[%clk 0:00:07.9]} 70... Ke5 {[%clk
0:00:17.8]} 71. Kd3 {[%clk 0:00:08.1]} 71... Kd5 {[%clk 0:00:19.2]} 72. Kc3
{[%clk 0:00:09.3]} 72... Kc5 {[%clk 0:00:20.6]} 73. Kd3 {[%clk 0:00:10.8]} 73...
Kd5 {[%clk 0:00:22]} 74. Kc3 {[%clk 0:00:12.1]} 74... Kc5 {[%clk 0:00:23.5]} 75.
Kd3 {[%clk 0:00:13.4]} 75... Kd5 {[%clk 0:00:24.3]} 76. Kc3 {[%clk 0:00:14.6]}
1/2-1/2

[Event "*** Titled Tuesday Blitz"]
[Site "Chess.com"]
[Date "2019.02.05"]
[Round "5"]
[White "Shukh_Nikolay"]
[Black "EugeneRougon"]
[Result "0-1"]
[WhiteElo "2360"]
[BlackElo "2574"]
[TimeControl "180+2"]
[EndTime "14:09:23 PST"]
[Termination "EugeneRougon won by resignation"]

1. Nf3 {[%clk 0:03:01.9]} 1... d5 {[%clk 0:02:59.5]} 2. c4 {[%clk 0:03:01.2]}
2... c6 {[%clk 0:02:57.6]} 3. b3 {[%clk 0:03:02.2]} 3... Nf6 {[%clk 0:02:49.5]}
4. Bb2 {[%clk 0:03:02.8]} 4... Bf5 {[%clk 0:02:49.1]} 5. e3 {[%clk 0:03:03.9]}
5... e6 {[%clk 0:02:50]} 6. d3 {[%clk 0:03:03]} 6... Bb4+ {[%clk 0:02:38.7]} 7.
Nc3 {[%clk 0:03:01.5]} 7... O-O {[%clk 0:02:15]} 8. Be2 {[%clk 0:03:02.4]} 8...
Qa5 {[%clk 0:02:03.3]} 9. Qc1 {[%clk 0:03:02.2]} 9... dxc4 {[%clk 0:01:52.2]}
10. bxc4 {[%clk 0:03:00.8]} 10... Rd8 {[%clk 0:01:45.8]} 11. e4 {[%clk
0:03:01.6]} 11... Bxe4 {[%clk 0:01:06.1]} 12. a3 {[%clk 0:02:57.4]} 12... Bc5
{[%clk 0:01:03.1]} 13. dxe4 {[%clk 0:02:55.8]} 13... Nxe4 {[%clk 0:01:01.9]} 14.
O-O {[%clk 0:02:56.5]} 14... Nxf2 {[%clk 0:00:56.1]} 15. Rxf2 {[%clk 0:02:56.4]}
15... Qb6 {[%clk 0:00:57.6]} 16. Ne4 {[%clk 0:02:55.5]} 16... Bxf2+ {[%clk
0:00:47.2]} 17. Nxf2 {[%clk 0:02:56.2]} 17... f6 {[%clk 0:00:48]} 18. Rb1 {[%clk
0:02:55.8]} 18... Qc7 {[%clk 0:00:47.1]} 19. Qe3 {[%clk 0:02:55.3]} 19... e5
{[%clk 0:00:47.7]} 20. Nh4 {[%clk 0:02:54.3]} 20... Nd7 {[%clk 0:00:40.8]} 21.
Nf5 {[%clk 0:02:53.4]} 21... Nf8 {[%clk 0:00:41.9]} 22. Ne4 {[%clk 0:02:51.7]}
22... b6 {[%clk 0:00:37]} 23. Qg3 {[%clk 0:02:46.1]} 23... Kh8 {[%clk
0:00:37.8]} 24. h4 {[%clk 0:02:38.6]} 24... Ne6 {[%clk 0:00:37.1]} 25. h5 {[%clk
0:02:30.6]} 25... Nf4 {[%clk 0:00:37.9]} 26. Bf3 {[%clk 0:02:30.4]} 26... Qd7
{[%clk 0:00:37.6]} 27. Qg4 {[%clk 0:02:18.5]} 27... Rf8 {[%clk 0:00:33]} 28. Rd1
{[%clk 0:02:12.3]} 28... Qf7 {[%clk 0:00:33.1]} 29. Ned6 {[%clk 0:02:06.3]}
29... Qc7 {[%clk 0:00:29]} 30. Bxc6 {[%clk 0:02:01.6]} 30... Rad8 {[%clk
0:00:27.9]} 31. Be4 {[%clk 0:02:00.5]} 31... Rd7 {[%clk 0:00:21.5]} 32. Kh2
{[%clk 0:01:53.3]} 32... g6 {[%clk 0:00:17.5]} 33. hxg6 {[%clk 0:01:53.5]} 33...
hxg6 {[%clk 0:00:19.4]} 34. Qh4+ {[%clk 0:01:48.8]} 34... Rh7 {[%clk 0:00:19.7]}
35. Nh6 {[%clk 0:01:47]} 35... Qg7 {[%clk 0:00:15.6]} 36. Kg1 {[%clk 0:00:32.6]}
36... Rxh6 {[%clk 0:00:16.6]} 37. Qg4 {[%clk 0:00:33.7]} 37... Qh7 {[%clk
0:00:10.5]} 38. Kf2 {[%clk 0:00:30.8]} 38... Rh4 {[%clk 0:00:10.2]} 39. Qg3
{[%clk 0:00:20.6]} 39... Qh5 {[%clk 0:00:10.4]} 40. Rd2 {[%clk 0:00:20.5]} 40...
Rg4 {[%clk 0:00:08.8]} 41. Qf3 {[%clk 0:00:21]} 41... Qh4+ {[%clk 0:00:08.9]}
42. g3 {[%clk 0:00:19.5]} 42... Qh2+ {[%clk 0:00:08.2]} 43. Ke1 {[%clk
0:00:20.7]} 43... Qg1+ {[%clk 0:00:08.5]} 44. Qf1 {[%clk 0:00:20.7]} 44... Qxg3+
{[%clk 0:00:07.2]} 45. Kd1 {[%clk 0:00:21.8]} 45... Kg7 {[%clk 0:00:07.6]} 46.
Nb5 {[%clk 0:00:20.1]} 46... Rf7 {[%clk 0:00:06.8]} 47. Nd6 {[%clk 0:00:19.7]}
47... Nh3 {[%clk 0:00:07.3]} 48. Nxf7 {[%clk 0:00:19.2]} 48... Nf2+ {[%clk
0:00:08.3]} 49. Kc1 {[%clk 0:00:18.9]} 49... Rxe4 {[%clk 0:00:07]} 50. Rxf2
{[%clk 0:00:18.8]} 50... Qe3+ {[%clk 0:00:05.1]} 51. Kb1 {[%clk 0:00:19.4]}
51... Qe1+ {[%clk 0:00:05.2]} 52. Ka2 {[%clk 0:00:20.2]} 52... Qxf1 {[%clk
0:00:06.1]} 53. Rxf1 {[%clk 0:00:21.6]} 53... Kxf7 {[%clk 0:00:08]} 54. Kb3
{[%clk 0:00:22.7]} 54... g5 {[%clk 0:00:08.8]} 55. a4 {[%clk 0:00:22.6]} 55...
g4 {[%clk 0:00:10.2]} 56. Bc3 {[%clk 0:00:23.2]} 56... Ke6 {[%clk 0:00:10.6]}
57. a5 {[%clk 0:00:24]} 57... f5 {[%clk 0:00:11.7]} 58. a6 {[%clk 0:00:24.6]}
58... g3 {[%clk 0:00:12.1]} 59. Bb4 {[%clk 0:00:25.5]} 59... f4 {[%clk
0:00:12.8]} 60. Rd1 {[%clk 0:00:26.3]} 60... f3 {[%clk 0:00:13.4]} 61. Rd6+
{[%clk 0:00:26.9]} 61... Kf5 {[%clk 0:00:14.7]} 62. Rd7 {[%clk 0:00:27.6]} 62...
f2 {[%clk 0:00:15.3]} 63. Rf7+ {[%clk 0:00:28.6]} 63... Kg4 {[%clk 0:00:16]} 64.
Bd6 {[%clk 0:00:27.5]} 64... Rf4 {[%clk 0:00:16.6]} 65. Rg7+ {[%clk 0:00:28]}
65... Kf3 {[%clk 0:00:17.1]} 66. Bxe5 {[%clk 0:00:28.5]} 66... f1=Q {[%clk
0:00:18.2]} 67. Bxf4 {[%clk 0:00:29.7]} 67... Qd3+ {[%clk 0:00:19.5]} 68. Kb4
{[%clk 0:00:30.5]} 68... Kxf4 {[%clk 0:00:20.8]} 69. Rxa7 {[%clk 0:00:29.8]}
69... g2 {[%clk 0:00:21.6]} 70. Rf7+ {[%clk 0:00:30]} 70... Ke5 {[%clk
0:00:21.8]} 71. a7 {[%clk 0:00:30.4]} 71... g1=Q {[%clk 0:00:20.9]} 72. Kb5
{[%clk 0:00:29.7]} 72... Qc5+ {[%clk 0:00:21.6]} 73. Ka6 {[%clk 0:00:30.8]}
73... Qdxc4+ {[%clk 0:00:22.9]} 74. Kb7 {[%clk 0:00:32.1]} 74... Qxf7+ {[%clk
0:00:24]} 0-1

[Event "*** Titled Tuesday Blitz"]
[Site "Chess.com"]
[Date "2019.02.05"]
[Round "5"]
[White "Denis_Makhnyov"]
[Black "WhiteKnight2612"]
[Result "0-1"]
[WhiteElo "2670"]
[BlackElo "2570"]
[TimeControl "180+2"]
[EndTime "14:10:05 PST"]
[Termination "WhiteKnight2612 won by checkmate"]

1. d4 {[%clk 0:02:58.1]} 1... Nf6 {[%clk 0:02:59.8]} 2. c4 {[%clk 0:02:59.2]}
2... e6 {[%clk 0:02:58.8]} 3. g3 {[%clk 0:03:00.4]} 3... d5 {[%clk 0:02:59]} 4.
Bg2 {[%clk 0:03:01.6]} 4... Be7 {[%clk 0:02:59.7]} 5. Nf3 {[%clk 0:03:02.6]}
5... O-O {[%clk 0:03:01.2]} 6. O-O {[%clk 0:03:04.3]} 6... b6 {[%clk 0:03:02.1]}
7. Qc2 {[%clk 0:03:04.6]} 7... Bb7 {[%clk 0:03:02.3]} 8. Ne5 {[%clk 0:03:04.9]}
8... Nbd7 {[%clk 0:02:50.7]} 9. Nc3 {[%clk 0:03:05.9]} 9... c5 {[%clk 0:02:49]}
10. Nxd7 {[%clk 0:03:06.6]} 10... Qxd7 {[%clk 0:02:49.7]} 11. dxc5 {[%clk
0:03:07.7]} 11... d4 {[%clk 0:02:41.3]} 12. Ne4 {[%clk 0:02:43.8]} 12... bxc5
{[%clk 0:02:39.3]} 13. Nxf6+ {[%clk 0:02:36.7]} 13... Bxf6 {[%clk 0:02:39.1]}
14. Bxb7 {[%clk 0:02:33.5]} 14... Qxb7 {[%clk 0:02:41]} 15. Rb1 {[%clk 0:02:31]}
15... a5 {[%clk 0:02:40.8]} 16. e4 {[%clk 0:02:22.5]} 16... e5 {[%clk
0:02:30.9]} 17. a4 {[%clk 0:02:18.8]} 17... Qd7 {[%clk 0:02:28.7]} 18. Rd1
{[%clk 0:02:09.5]} 18... Rfd8 {[%clk 0:02:29.5]} 19. Rd3 {[%clk 0:02:08.5]}
19... Qc6 {[%clk 0:02:29.8]} 20. f3 {[%clk 0:02:08.7]} 20... Rd7 {[%clk
0:02:28.3]} 21. b3 {[%clk 0:02:09.8]} 21... Bd8 {[%clk 0:02:28.4]} 22. Bd2
{[%clk 0:02:10.7]} 22... Bb6 {[%clk 0:02:29.6]} 23. Kg2 {[%clk 0:02:11.7]} 23...
Rad8 {[%clk 0:02:29.8]} 24. Re1 {[%clk 0:02:12.8]} 24... f6 {[%clk 0:02:30]} 25.
Qd1 {[%clk 0:02:11.4]} 25... Rb7 {[%clk 0:02:28.4]} 26. h4 {[%clk 0:02:04.7]}
26... Bc7 {[%clk 0:02:27.7]} 27. Qe2 {[%clk 0:01:59.6]} 27... Rdb8 {[%clk
0:02:25.3]} 28. Rb1 {[%clk 0:01:58.6]} 28... h6 {[%clk 0:02:11.8]} 29. Kh2
{[%clk 0:01:51.8]} 29... Qd7 {[%clk 0:02:10.6]} 30. Qg2 {[%clk 0:01:50]} 30...
Kf7 {[%clk 0:02:10.2]} 31. h5 {[%clk 0:01:48.8]} 31... Ke7 {[%clk 0:02:10.1]}
32. Qh3 {[%clk 0:01:49.8]} 32... Qe6 {[%clk 0:01:58.9]} 33. Qh4 {[%clk
0:01:41.1]} 33... Bd8 {[%clk 0:01:59]} 34. Kg2 {[%clk 0:01:41.4]} 34... Kd7
{[%clk 0:01:59.5]} 35. Qh1 {[%clk 0:01:31.6]} 35... Kc6 {[%clk 0:01:55.1]} 36.
Kf2 {[%clk 0:01:30.6]} 36... Kb6 {[%clk 0:01:53.3]} 37. Ke2 {[%clk 0:01:31.1]}
37... Ka6 {[%clk 0:01:54.4]} 38. Kd1 {[%clk 0:01:30.6]} 38... f5 {[%clk
0:01:48.2]} 39. Qh3 {[%clk 0:01:29.4]} 39... Rf7 {[%clk 0:01:48.9]} 40. Kc2
{[%clk 0:01:28.5]} 40... Qd7 {[%clk 0:01:41.5]} 41. Re1 {[%clk 0:01:27]} 41...
Bc7 {[%clk 0:01:38.7]} 42. exf5 {[%clk 0:01:21.5]} 42... Rxf5 {[%clk 0:01:38.9]}
43. Re4 {[%clk 0:01:20.3]} 43... Rbf8 {[%clk 0:01:38.8]} 44. g4 {[%clk
0:01:12.5]} 44... R5f7 {[%clk 0:01:34.6]} 45. Kd1 {[%clk 0:01:13.7]} 45... Qc6
{[%clk 0:01:32.9]} 46. Ke2 {[%clk 0:01:12.4]} 46... Rf6 {[%clk 0:01:23.4]} 47.
Be1 {[%clk 0:01:11.5]} 47... Rf4 {[%clk 0:01:16.5]} 48. Rxf4 {[%clk 0:01:11.7]}
48... Rxf4 {[%clk 0:01:01.5]} 49. Kd1 {[%clk 0:00:38.9]} 49... e4 {[%clk
0:00:59.4]} 50. fxe4 {[%clk 0:00:40.3]} 50... Qxe4 {[%clk 0:01:00.9]} 51. Bd2
{[%clk 0:00:41.9]} 51... Rf2 {[%clk 0:00:57.5]} 52. g5 {[%clk 0:00:37.5]} 52...
Kb7 {[%clk 0:00:40.2]} 53. g6 {[%clk 0:00:37.6]} 53... Qe2+ {[%clk 0:00:30]} 54.
Kc2 {[%clk 0:00:38.9]} 54... Bf4 {[%clk 0:00:27.1]} 55. Qd7+ {[%clk 0:00:29.3]}
55... Kb8 {[%clk 0:00:26.5]} 56. Qb5+ {[%clk 0:00:29.5]} 56... Ka8 {[%clk
0:00:27.9]} 57. Qxa5+ {[%clk 0:00:30.4]} 57... Kb8 {[%clk 0:00:29.3]} 58. Qb6+
{[%clk 0:00:22.2]} 58... Ka8 {[%clk 0:00:30.1]} 59. Qd8+ {[%clk 0:00:23.7]}
59... Ka7 {[%clk 0:00:29]} 60. Qd7+ {[%clk 0:00:21]} 60... Ka8 {[%clk
0:00:29.8]} 61. Qc6+ {[%clk 0:00:16.5]} 61... Kb8 {[%clk 0:00:30.4]} 62. Qb5+
{[%clk 0:00:17.1]} 62... Ka8 {[%clk 0:00:30.7]} 63. Qxc5 {[%clk 0:00:06.8]}
63... Bxd2 {[%clk 0:00:21.6]} 64. Qc8+ {[%clk 0:00:07.9]} 64... Ka7 {[%clk
0:00:22.2]} 65. Qc7+ {[%clk 0:00:09.8]} 65... Ka8 {[%clk 0:00:23.5]} 66. Qc8+
{[%clk 0:00:11]} 66... Ka7 {[%clk 0:00:25]} 67. Qc7+ {[%clk 0:00:12.9]} 67...
Ka8 {[%clk 0:00:26.4]} 68. Qc8+ {[%clk 0:00:14]} 68... Ka7 {[%clk 0:00:27.4]}
69. Qd7+ {[%clk 0:00:14.6]} 69... Ka8 {[%clk 0:00:27.7]} 70. Qd8+ {[%clk
0:00:15.9]} 70... Kb7 {[%clk 0:00:28.2]} 71. Qd5+ {[%clk 0:00:16.5]} 71... Kb8
{[%clk 0:00:29.1]} 72. Qd6+ {[%clk 0:00:16.7]} 72... Kb7 {[%clk 0:00:30.1]} 73.
Qd5+ {[%clk 0:00:16.6]} 73... Kb8 {[%clk 0:00:30.4]} 74. Qb5+ {[%clk 0:00:16.2]}
74... Ka8 {[%clk 0:00:30.8]} 75. Qc6+ {[%clk 0:00:15.3]} 75... Ka7 {[%clk
0:00:31.6]} 76. Qd7+ {[%clk 0:00:14.7]} 76... Kb8 {[%clk 0:00:32.7]} 77. Qd8+
{[%clk 0:00:15.2]} 77... Kb7 {[%clk 0:00:33.5]} 78. Qd5+ {[%clk 0:00:16.3]}
78... Kb8 {[%clk 0:00:34.5]} 79. Qg8+ {[%clk 0:00:10.9]} 79... Ka7 {[%clk
0:00:30.1]} 80. Qxg7+ {[%clk 0:00:11.9]} 80... Ka6 {[%clk 0:00:31.2]} 81. Qf6+
{[%clk 0:00:06.1]} 81... Rxf6 {[%clk 0:00:31.2]} 82. Rxd2 {[%clk 0:00:07]} 82...
Qe4+ {[%clk 0:00:32.2]} 83. Kb2 {[%clk 0:00:08.2]} 83... d3 {[%clk 0:00:32.5]}
84. Ka3 {[%clk 0:00:09.3]} 84... Qe3 {[%clk 0:00:32.1]} 85. Kb4 {[%clk
0:00:08.9]} 85... Qxd2+ {[%clk 0:00:32.9]} 86. Kc5 {[%clk 0:00:10.8]} 86... Qg5+
{[%clk 0:00:33.9]} 87. Kb4 {[%clk 0:00:12]} 87... d2 {[%clk 0:00:34.7]} 88. c5
{[%clk 0:00:13.9]} 88... d1=Q {[%clk 0:00:35.2]} 89. Ka3 {[%clk 0:00:15.8]}
89... Qa1+ {[%clk 0:00:35.5]} 90. Kb4 {[%clk 0:00:17.1]} 90... Qd2+ {[%clk
0:00:37.4]} 91. Kc4 {[%clk 0:00:17.5]} 91... Qac3# {[%clk 0:00:39.1]} 0-1